[Event "Eurasia Open Cup 2018"]
[Site "Jekaterienburg"]
[Date "2018.08.04"]
[Round "4"]
[White "Kryakvin, Dmitry"]
[Black "Kozionov, Kirill"]
[Result "1-0"]
[ECO "D27"]
[WhiteElo "2591"]
[BlackElo "2461"]
[Annotator "ChessBase"]
[PlyCount "81"]
[EventDate "2018.08.01"]
[EventType "swiss"]
[EventCountry "RUS"]
[SourceTitle "playchess.com"]
[Source "ChessBase"]
[SourceQuality "1"]
[TimeControl "5400+30"]

1. d4 {[%emt 0:00:00]} d5 {[%emt 0:00:00]} 2. c4 {[%emt 0:00:00]} dxc4 {[%emt 0:00:00]} 3. e3 {[%emt 0:00:00]} Nf6 {[%emt 0:00:00]} 4. Bxc4 {[%emt 0:00:00]} e6 {[%emt 0:00:03]} 5. Nf3 {[%emt 0:00:00]} c5 {[%emt 0:00:00]} 6. O-O {[%emt 0:00:04]} a6 {[%emt 0:00:16]} 7. b3 {[%emt 0:00:06]} cxd4 {[%emt 0:00:31]} 8. Nxd4 {[%emt 0:00:30]} Bd7 {[%emt 0:00:07]} 9. Bb2 {[%emt 0:00:00]} Nc6 {[%emt 0:00:08]} 10. Nd2 {[%emt 0:00:35]} Be7 {[%emt 0:00:11]} 11. Be2 {[%emt 0:03:01]} O-O {[%emt 0:12:50]} 12. Rc1 {[%emt 0:07:47]} Nxd4 {[%emt 0:21:52]} 13. Bxd4 {[%emt 0:00:08]} Bc6 {[%emt 0:04:50]} 14. Nc4 {[%emt 0:01:35]} Nd5 {[%emt 0:06:32]} 15. Qd2 {[%emt 0:05:07]} Bf6 {[%emt 0:01:01]} 16. Rfd1 {[%emt 0:11:55]} Bxd4 {[%emt 0:10:53]} 17. Qxd4 {[%emt 0:00:33]} Qe7 {[%emt 0:02:56]} 18. Na5 {[%emt 0:18:24]} Rfc8 {[%emt 0:03:25]} 19. Nxc6 {[%emt 0:03:26]} Rxc6 {[%emt 0:00:34]} 20. Rxc6 {[%emt 0:00:35]} bxc6 {[%emt 0:00:04]} 21. Qc4 {[%emt 0:05:16]} Qb7 {[%emt 0:04:02]} 22. Rc1 {[%emt 0:01:25]} Ne7 {[%emt 0:01:38]} 23. h4 {[%emt 0:02:56]} Qb6 {[%emt 0:07:15]} 24. h5 {[%emt 0:04:45]} h6 {[%emt 0:00:11]} 25. Qc5 {[%emt 0:02:13]} Qxc5 {[%emt 0:01:59]} 26. Rxc5 {[%emt 0:00:42]} a5 {[%emt 0:00:16]} 27. Bf3 {[%emt 0:01:05]} Ra6 {[%emt 0:03:03]} 28. Rc4 {[%emt 0:04:43]} Nd5 {[%emt 0:01:18]} 29. Be2 {[%emt 0:03:54]} Kf8 {[%emt 0:01:01]} 30. Kf1 {[%emt 0:02:08]} Ra8 {[%emt 0:05:11]} 31. e4 {[%emt 0:01:59]} Nf6 {[%emt 0:02:25]} 32. Ke1 {[%emt 0:02:23]} Ke7 {[%emt 0:00:58]} 33. Rxc6 {[%emt 0:00:36]} Ra7 {[%emt 0:03:27]} 34. Rc4 {[%emt 0:01:51]} Nd7 {[%emt 0:01:10]} 35. Kd2 {[%emt 0:00:44]} Kd6 {[%emt 0:00:00]} 36. Ke3 {[%emt 0:01:33]} e5 {[%emt 0:00:23]} 37. Rc8 {[%emt 0:00:55]} Nc5 {[%emt 0:04:27]} 38. Bc4 {[%emt 0:01:11]} Ne6 {[%emt 0:00:33]} 39. Bxe6 {[%emt 0:00:38]} Kxe6 {[%emt 0:00:05]} 40. Rc6+ {[%emt 0:00:57]} Kd7 {[%emt 0:00:13]} 41. Rc4 {[%emt 0:01:24]} 1-0

[Event "Eurasia Open Cup 2018"]
[Site "Jekaterienburg"]
[Date "2018.08.04"]
[Round "4"]
[White "Chigaev, Maksim"]
[Black "Kabanov, Nikolai"]
[Result "1/2-1/2"]
[ECO "A08"]
[WhiteElo "2577"]
[BlackElo "2475"]
[Annotator "ChessBase"]
[PlyCount "133"]
[EventDate "2018.08.01"]
[EventType "swiss"]
[EventCountry "RUS"]
[SourceTitle "playchess.com"]
[Source "ChessBase"]
[SourceQuality "1"]
[TimeControl "5400+30"]

1. e4 {[%emt 0:00:00]} c5 {[%emt 0:00:00]} 2. Nf3 {[%emt 0:00:00]} e6 {[%emt 0:00:00]} 3. d3 {[%emt 0:03:51]} d5 {[%emt 0:01:21]} 4. Nbd2 {[%emt 0:00:00]} Nc6 {[%emt 0:00:46]} 5. g3 {[%emt 0:00:30]} g6 {[%emt 0:00:35]} 6. Bg2 {[%emt 0:00:07]} Bg7 {[%emt 0:00:06]} 7. O-O {[%emt 0:00:12]} Nge7 {[%emt 0:00:08]} 8. Re1 {[%emt 0:00:17]} b6 {[%emt 0:01:15]} 9. c3 {[%emt 0:07:34]} a5 {[%emt 0:02:24]} 10. a4 {[%emt 0:00:29]} Ba6 {[%emt 0:00:37]} 11. exd5 {[%emt 0:00:46]} exd5 {[%emt 0:01:29]} 12. Nb3 {[%emt 0:02:09]} O-O {[%emt 0:09:51]} 13. d4 {[%emt 0:00:02]} c4 {[%emt 0:00:29]} 14. Nbd2 {[%emt 0:00:32]} Nf5 {[%emt 0:00:30]} 15. Nf1 {[%emt 0:01:11]} Ra7 {[%emt 0:01:10]} 16. Bf4 {[%emt 0:04:27]} Bc8 {[%emt 0:05:40]} 17. b3 {[%emt 0:15:47]} cxb3 {[%emt 0:03:21]} 18. Qxb3 {[%emt 0:00:11]} Ba6 {[%emt 0:01:28]} 19. Ne5 {[%emt 0:07:03]} Nxe5 {[%emt 0:02:46]} 20. Bxe5 {[%emt 0:01:08]} Bc4 {[%emt 0:00:24]} 21. Qb2 {[%emt 0:00:44]} Re8 {[%emt 0:08:07]} 22. Nd2 {[%emt 0:06:47]} Bd3 {[%emt 0:08:26]} 23. Qb3 {[%emt 0:08:43]} Rd7 {[%emt 0:01:00]} 24. Bxg7 {[%emt 0:02:55]} Nxg7 {[%emt 0:00:48]} 25. Rxe8+ {[%emt 0:04:24]} Nxe8 {[%emt 0:00:00]} 26. Nf3 {[%emt 0:00:40]} Bc4 {[%emt 0:02:55]} 27. Qb2 {[%emt 0:03:00]} Rd6 {[%emt 0:01:10]} 28. Ne5 {[%emt 0:02:32]} Ba6 {[%emt 0:00:33]} 29. Re1 {[%emt 0:00:00]} Nf6 {[%emt 0:02:08]} 30. Qc1 {[%emt 0:05:48]} Nd7 {[%emt 0:02:03]} 31. Ng4 {[%emt 0:05:22]} h5 {[%emt 0:03:28]} 32. Qf4 {[%emt 0:01:16]} Nf6 {[%emt 0:02:31]} 33. Ne5 {[%emt 0:00:09]} b5 {[%emt 0:07:08]} 34. axb5 {[%emt 0:00:45]} Bxb5 {[%emt 0:00:00]} 35. h3 {[%emt 0:02:00]} Be8 {[%emt 0:00:26]} 36. g4 {[%emt 0:00:32]} a4 {[%emt 0:00:35]} 37. g5 {[%emt 0:01:34]} Ne4 {[%emt 0:02:13]} 38. c4 {[%emt 0:06:10]} Nxg5 {[%emt 0:00:44]} 39. cxd5 {[%emt 0:05:26]} Rxd5 {[%emt 0:05:04]} 40. Nxg6 {[%emt 0:00:00]} Rxd4 {[%emt 0:01:16]} 41. Rxe8+ {[%emt 0:00:11]} Qxe8 {[%emt 0:00:05]} 42. Qxd4 {[%emt 0:00:06]} fxg6 {[%emt 0:00:44]} 43. Qf6 {[%emt 0:00:36]} Qe1+ {[%emt 0:06:29]} 44. Kh2 {[%emt 0:00:11]} Qa5 {[%emt 0:00:07]} 45. Qxg6+ {[%emt 0:01:12]} Kf8 {[%emt 0:00:08]} 46. Qd6+ {[%emt 0:00:07]} Kg7 {[%emt 0:00:25]} 47. Bd5 {[%emt 0:03:50]} Qc3 {[%emt 0:02:11]} 48. Qe7+ {[%emt 0:01:07]} Kh6 {[%emt 0:00:15]} 49. Qf8+ {[%emt 0:00:43]} Qg7 {[%emt 0:03:28]} 50. Qf4 {[%emt 0:00:36]} Qc3 {[%emt 0:06:48]} 51. h4 {[%emt 0:00:36]} Qh3+ {[%emt 0:00:07]} 52. Kg1 {[%emt 0:00:04]} Qg4+ {[%emt 0:00:05]} 53. Qxg4 {[%emt 0:00:05]} hxg4 {[%emt 0:00:03]} 54. hxg5+ {[%emt 0:00:06]} Kxg5 {[%emt 0:00:03]} 55. Kg2 {[%emt 0:00:13]} Kf4 {[%emt 0:00:13]} 56. Ba2 {[%emt 0:00:06]} a3 {[%emt 0:00:11]} 57. Bb1 {[%emt 0:00:58]} Kg5 {[%emt 0:00:52]} 58. Kg3 {[%emt 0:00:10]} Kh5 {[%emt 0:00:19]} 59. Kf4 {[%emt 0:00:49]} Kh4 {[%emt 0:00:08]} 60. Ba2 {[%emt 0:00:12]} Kh3 {[%emt 0:00:55]} 61. Bd5 {[%emt 0:00:10]} Kh4 {[%emt 0:00:39]} 62. Be6 {[%emt 0:00:11]} Kh3 {[%emt 0:00:09]} 63. Bd5 {[%emt 0:00:55]} Kh4 {[%emt 0:00:09]} 64. Be6 {[%emt 0:01:02]} Kh3 {[%emt 0:00:17]} 65. Bxg4+ {[%emt 0:00:05]} Kg2 {[%emt 0:00:08]} 66. Be6 {[%emt 0:00:04]} Kxf2 {[%emt 0:00:10]} 67. Ke4 {[%emt 0:00:05]} 1/2-1/2

[Event "Eurasia Open Cup 2018"]
[Site "Jekaterienburg"]
[Date "2018.08.04"]
[Round "4"]
[White "Pridorozhni, Aleksei"]
[Black "Sarana, Alexey"]
[Result "1/2-1/2"]
[ECO "B23"]
[WhiteElo "2564"]
[BlackElo "2613"]
[Annotator "ChessBase"]
[PlyCount "73"]
[EventDate "2018.08.01"]
[EventType "swiss"]
[EventCountry "RUS"]
[SourceTitle "playchess.com"]
[Source "ChessBase"]
[SourceQuality "1"]
[TimeControl "5400+30"]

1. e4 {[%emt 0:00:00]} c5 {[%emt 0:00:00]} 2. Nc3 {[%emt 0:01:44]} d6 {[%emt 0:00:00]} 3. d4 {[%emt 0:00:11]} cxd4 {[%emt 0:00:46]} 4. Qxd4 {[%emt 0:00:06]} Nc6 {[%emt 0:00:18]} 5. Qd2 {[%emt 0:00:04]} g6 {[%emt 0:00:34]} 6. b3 {[%emt 0:00:08]} Bh6 {[%emt 0:01:56]} 7. f4 {[%emt 0:00:28]} Nf6 {[%emt 0:00:28]} 8. Bb2 {[%emt 0:00:06]} a5 {[%emt 0:00:08]} 9. a4 {[%emt 0:00:04]} O-O {[%emt 0:00:08]} 10. O-O-O {[%emt 0:00:08]} e5 {[%emt 0:00:52]} 11. g3 {[%emt 0:00:46]} Qb6 {[%emt 0:04:52]} 12. Kb1 {[%emt 0:00:19]} Be6 {[%emt 0:04:21]} 13. Nf3 {[%emt 0:05:58]} Rfd8 {[%emt 0:01:41]} 14. Ng5 {[%emt 0:10:04]} Bxg5 {[%emt 0:14:09]} 15. fxg5 {[%emt 0:07:36]} Ng4 {[%emt 0:06:58]} 16. Nd5 {[%emt 0:00:18]} Bxd5 {[%emt 0:00:03]} 17. exd5 {[%emt 0:06:37]} Nb4 {[%emt 0:00:14]} 18. Rc1 {[%emt 0:00:05]} Nf2 {[%emt 0:05:59]} 19. Rg1 {[%emt 0:01:23]} Ne4 {[%emt 0:08:05]} 20. Qg2 {[%emt 0:00:13]} Nxg5 {[%emt 0:00:15]} 21. Bc4 {[%emt 0:00:07]} Qe3 {[%emt 0:00:24]} 22. Rce1 {[%emt 0:04:20]} Qf3 {[%emt 0:08:53]} 23. h4 {[%emt 0:07:27]} Qxg2 {[%emt 0:01:29]} 24. Rxg2 {[%emt 0:00:12]} Nf3 {[%emt 0:00:36]} 25. Re3 {[%emt 0:00:06]} Nd4 {[%emt 0:00:11]} 26. Bxd4 {[%emt 0:00:22]} exd4 {[%emt 0:00:57]} 27. Re4 {[%emt 0:05:39]} Re8 {[%emt 0:00:02]} 28. Rxd4 {[%emt 0:00:07]} Re3 {[%emt 0:03:54]} 29. Kb2 {[%emt 0:05:32]} h5 {[%emt 0:00:40]} 30. c3 {[%emt 0:00:45]} Na6 {[%emt 0:01:54]} 31. Bxa6 {[%emt 0:10:00]} Rxa6 {[%emt 0:00:01]} 32. Rc4 {[%emt 0:00:06]} Kf8 {[%emt 0:00:02]} 33. Rc8+ {[%emt 0:00:05]} Re8 {[%emt 0:09:20]} 34. Rc7 {[%emt 0:07:41]} Re7 {[%emt 0:00:02]} 35. Rc8+ {[%emt 0:00:12]} Re8 {[%emt 0:00:03]} 36. Rc7 {[%emt 0:00:06]} Re7 {[%emt 0:00:03]} 37. Rc8+ {[%emt 0:00:25]} 1/2-1/2

[Event "Eurasia Open Cup 2018"]
[Site "Jekaterienburg"]
[Date "2018.08.04"]
[Round "4"]
[White "Bocharov, Ivan"]
[Black "Rozum, Ivan"]
[Result "1-0"]
[ECO "B12"]
[WhiteElo "2552"]
[BlackElo "2581"]
[Annotator "ChessBase"]
[PlyCount "87"]
[EventDate "2018.08.01"]
[EventType "swiss"]
[EventCountry "RUS"]
[SourceTitle "playchess.com"]
[Source "ChessBase"]
[SourceQuality "1"]
[TimeControl "5400+30"]

1. e4 {[%emt 0:00:00]} c6 {[%emt 0:00:00]} 2. d4 {[%emt 0:00:00]} d5 {[%emt 0:00:06]} 3. e5 {[%emt 0:00:00]} Bf5 {[%emt 0:00:26]} 4. Nf3 {[%emt 0:00:00]} e6 {[%emt 0:00:07]} 5. Be2 {[%emt 0:00:00]} Ne7 {[%emt 0:02:56]} 6. O-O {[%emt 0:00:16]} Nc8 {[%emt 0:01:37]} 7. b3 {[%emt 0:04:15]} Be7 {[%emt 0:00:13]} 8. c4 {[%emt 0:00:35]} O-O {[%emt 0:00:06]} 9. Nc3 {[%emt 0:00:26]} Nd7 {[%emt 0:04:02]} 10. h3 {[%emt 0:04:55]} f6 {[%emt 0:03:35]} 11. exf6 {[%emt 0:01:20]} Bxf6 {[%emt 0:02:31]} 12. Bd3 {[%emt 0:00:59]} Bxd3 {[%emt 0:05:21]} 13. Qxd3 {[%emt 0:00:02]} dxc4 {[%emt 0:02:37]} 14. Qxc4 {[%emt 0:04:39]} Re8 {[%emt 0:01:48]} 15. Ne4 {[%emt 0:00:14]} Ndb6 {[%emt 0:02:23]} 16. Qc2 {[%emt 0:05:23]} Nd6 {[%emt 0:01:47]} 17. Neg5 {[%emt 0:01:31]} h6 {[%emt 0:02:56]} 18. Qh7+ {[%emt 0:07:15]} Kf8 {[%emt 0:00:32]} 19. h4 {[%emt 0:01:18]} Ke7 {[%emt 0:09:28]} 20. Ba3 {[%emt 0:14:22]} Rh8 {[%emt 0:04:03]} 21. Qg6 {[%emt 0:00:52]} hxg5 {[%emt 0:03:21]} 22. hxg5 {[%emt 0:00:07]} Kd7 {[%emt 0:03:59]} 23. gxf6 {[%emt 0:00:32]} gxf6 {[%emt 0:01:46]} 24. Qg7+ {[%emt 0:01:00]} Qe7 {[%emt 0:00:17]} 25. Ne5+ {[%emt 0:00:02]} fxe5 {[%emt 0:00:09]} 26. Qxe7+ {[%emt 0:00:00]} Kxe7 {[%emt 0:00:05]} 27. dxe5 {[%emt 0:00:00]} Nd5 {[%emt 0:01:47]} 28. Bxd6+ {[%emt 0:01:25]} Kd7 {[%emt 0:07:12]} 29. g3 {[%emt 0:02:10]} Rh5 {[%emt 0:02:21]} 30. Kg2 {[%emt 0:02:26]} Rah8 {[%emt 0:00:39]} 31. Rh1 {[%emt 0:00:19]} Rxh1 {[%emt 0:02:02]} 32. Rxh1 {[%emt 0:01:05]} Rxh1 {[%emt 0:00:00]} 33. Kxh1 {[%emt 0:00:01]} Nc3 {[%emt 0:00:00]} 34. a4 {[%emt 0:10:23]} Ne4 {[%emt 0:00:00]} 35. Kg2 {[%emt 0:00:39]} a5 {[%emt 0:03:43]} 36. g4 {[%emt 0:07:56]} b5 {[%emt 0:04:04]} 37. f4 {[%emt 0:01:26]} b4 {[%emt 0:14:31]} 38. g5 {[%emt 0:00:52]} c5 {[%emt 0:02:18]} 39. g6 {[%emt 0:03:07]} Ke8 {[%emt 0:00:04]} 40. Kf3 {[%emt 0:04:02]} Nd2+ {[%emt 0:00:45]} 41. Ke3 {[%emt 0:00:23]} Nxb3 {[%emt 0:00:15]} 42. f5 {[%emt 0:00:06]} exf5 {[%emt 0:03:41]} 43. e6 {[%emt 0:00:01]} f4+ {[%emt 0:00:21]} 44. Ke4 {[%emt 0:00:46]} 1-0

[Event "Eurasia Open Cup 2018"]
[Site "Jekaterienburg"]
[Date "2018.08.04"]
[Round "4"]
[White "Sorokin, Aleksey"]
[Black "Drygalov, Sergey"]
[Result "1/2-1/2"]
[ECO "D45"]
[WhiteElo "2519"]
[BlackElo "2433"]
[Annotator "ChessBase"]
[PlyCount "81"]
[EventDate "2018.08.01"]
[EventType "swiss"]
[EventCountry "RUS"]
[SourceTitle "playchess.com"]
[Source "ChessBase"]
[SourceQuality "1"]
[TimeControl "5400+30"]

1. d4 {[%emt 0:00:00]} d5 {[%emt 0:00:00]} 2. c4 {[%emt 0:00:01]} c6 {[%emt 0:00:00]} 3. Nf3 {[%emt 0:00:09]} Nf6 {[%emt 0:00:00]} 4. Nc3 {[%emt 0:01:04]} e6 {[%emt 0:00:00]} 5. e3 {[%emt 0:01:05]} Nbd7 {[%emt 0:00:00]} 6. Qc2 {[%emt 0:00:29]} Bd6 {[%emt 0:00:02]} 7. b3 {[%emt 0:01:27]} O-O {[%emt 0:00:49]} 8. Bb2 {[%emt 0:01:40]} b6 {[%emt 0:03:13]} 9. Bd3 {[%emt 0:02:37]} Bb7 {[%emt 0:08:01]} 10. O-O {[%emt 0:01:15]} Qe7 {[%emt 0:00:51]} 11. cxd5 {[%emt 0:11:42]} cxd5 {[%emt 0:18:34]} 12. Nb5 {[%emt 0:00:34]} Rfc8 {[%emt 0:01:41]} 13. Qe2 {[%emt 0:01:30]} Ne4 {[%emt 0:02:58]} 14. Rfc1 {[%emt 0:03:54]} a6 {[%emt 0:21:29]} 15. Nxd6 {[%emt 0:01:14]} Qxd6 {[%emt 0:01:47]} 16. Ne1 {[%emt 0:06:11]} b5 {[%emt 0:02:53]} 17. f3 {[%emt 0:02:58]} Nef6 {[%emt 0:00:40]} 18. Nc2 {[%emt 0:02:09]} Qb6 {[%emt 0:01:14]} 19. Rab1 {[%emt 0:10:10]} b4 {[%emt 0:04:51]} 20. a3 {[%emt 0:03:50]} bxa3 {[%emt 0:01:03]} 21. Bxa3 {[%emt 0:01:57]} a5 {[%emt 0:00:54]} 22. Be7 {[%emt 0:04:08]} Re8 {[%emt 0:04:21]} 23. Ba3 {[%emt 0:01:03]} Rec8 {[%emt 0:01:18]} 24. Ne1 {[%emt 0:03:31]} Rxc1 {[%emt 0:03:08]} 25. Bxc1 {[%emt 0:00:17]} Ne8 {[%emt 0:01:59]} 26. Qa2 {[%emt 0:04:31]} Nd6 {[%emt 0:01:40]} 27. Ra1 {[%emt 0:02:30]} Bc6 {[%emt 0:02:59]} 28. Ba3 {[%emt 0:01:46]} Nb5 {[%emt 0:01:05]} 29. Qc2 {[%emt 0:03:25]} h6 {[%emt 0:04:36]} 30. Bc5 {[%emt 0:01:13]} Nxc5 {[%emt 0:01:00]} 31. Qxc5 {[%emt 0:00:02]} Qb7 {[%emt 0:01:32]} 32. Rc1 {[%emt 0:02:41]} Bd7 {[%emt 0:01:27]} 33. Qc2 {[%emt 0:03:27]} Rc8 {[%emt 0:02:10]} 34. Qd2 {[%emt 0:00:15]} Rxc1 {[%emt 0:01:15]} 35. Qxc1 {[%emt 0:00:02]} Qc6 {[%emt 0:00:32]} 36. Qc2 {[%emt 0:03:30]} Qxc2 {[%emt 0:00:48]} 37. Nxc2 {[%emt 0:00:17]} Kf8 {[%emt 0:00:30]} 38. Kf1 {[%emt 0:00:27]} Ke7 {[%emt 0:00:42]} 39. Ke1 {[%emt 0:00:13]} Kd6 {[%emt 0:00:20]} 40. Kd2 {[%emt 0:00:18]} Na7 {[%emt 0:00:20]} 41. Kc3 {[%emt 0:00:10]} 1/2-1/2

[Event "Eurasia Open Cup 2018"]
[Site "Jekaterienburg"]
[Date "2018.08.04"]
[Round "4"]
[White "Khanin, Semen"]
[Black "Fokin, Sergey"]
[Result "0-1"]
[ECO "B41"]
[WhiteElo "2494"]
[BlackElo "2186"]
[Annotator "ChessBase"]
[PlyCount "112"]
[EventDate "2018.08.01"]
[EventType "swiss"]
[EventCountry "RUS"]
[SourceTitle "playchess.com"]
[Source "ChessBase"]
[SourceQuality "1"]
[TimeControl "5400+30"]

1. e4 {[%emt 0:00:00]} c5 {[%emt 0:00:00]} 2. Nf3 {[%emt 0:00:00]} e6 {[%emt 0:00:00]} 3. d4 {[%emt 0:00:00]} cxd4 {[%emt 0:00:00]} 4. Nxd4 {[%emt 0:00:00]} a6 {[%emt 0:00:02]} 5. c4 {[%emt 0:00:00]} Nf6 {[%emt 0:00:07]} 6. Nc3 {[%emt 0:00:00]} Bb4 {[%emt 0:00:10]} 7. Qd3 {[%emt 0:00:00]} Qc7 {[%emt 0:00:14]} 8. a3 {[%emt 0:00:01]} Bxc3+ {[%emt 0:05:21]} 9. Qxc3 {[%emt 0:12:18]} Nxe4 {[%emt 0:03:34]} 10. Nb5 {[%emt 0:00:14]} axb5 {[%emt 0:08:54]} 11. Qxg7 {[%emt 0:00:00]} Rf8 {[%emt 0:05:20]} 12. Bh6 {[%emt 0:00:59]} Qc5 {[%emt 0:00:37]} 13. f3 {[%emt 0:00:31]} bxc4 {[%emt 0:00:59]} 14. fxe4 {[%emt 0:00:29]} b5 {[%emt 0:19:16]} 15. Qxh7 {[%emt 0:01:20]} Bb7 {[%emt 0:08:03]} 16. Be2 {[%emt 0:21:35]} Nc6 {[%emt 0:11:21]} 17. Bxf8 {[%emt 0:01:45]} Kxf8 {[%emt 0:02:55]} 18. Rf1 {[%emt 0:02:19]} Ne5 {[%emt 0:00:10]} 19. Rd1 {[%emt 0:00:30]} d6 {[%emt 0:00:33]} 20. Qh6+ {[%emt 0:18:30]} Ke7 {[%emt 0:09:54]} 21. Qg5+ {[%emt 0:00:05]} Ke8 {[%emt 0:02:02]} 22. Qd2 {[%emt 0:00:11]} Ke7 {[%emt 0:00:08]} 23. Qd4 {[%emt 0:00:42]} Qxd4 {[%emt 0:04:48]} 24. Rxd4 {[%emt 0:02:56]} Nd7 {[%emt 0:00:45]} 25. Bf3 {[%emt 0:10:21]} e5 {[%emt 0:00:49]} 26. Rd2 {[%emt 0:00:38]} Nc5 {[%emt 0:00:27]} 27. Rdf2 {[%emt 0:03:25]} f6 {[%emt 0:00:25]} 28. Kd2 {[%emt 0:00:16]} Bxe4 {[%emt 0:00:13]} 29. Ke3 {[%emt 0:17:10]} d5 {[%emt 0:03:23]} 30. Bxe4 {[%emt 0:05:25]} Nxe4 {[%emt 0:00:35]} 31. Rf3 {[%emt 0:01:46]} b4 {[%emt 0:00:19]} 32. axb4 {[%emt 0:00:03]} Ra4 {[%emt 0:00:08]} 33. b3 {[%emt 0:00:23]} cxb3 {[%emt 0:02:32]} 34. Rb1 {[%emt 0:00:41]} Rxb4 {[%emt 0:00:09]} 35. Ke2 {[%emt 0:01:09]} Nc5 {[%emt 0:00:19]} 36. Rc3 {[%emt 0:00:30]} Kd6 {[%emt 0:00:44]} 37. Rf3 {[%emt 0:01:07]} Ke6 {[%emt 0:00:55]} 38. Rc3 {[%emt 0:00:16]} Rb5 {[%emt 0:00:21]} 39. h4 {[%emt 0:00:04]} d4 {[%emt 0:02:37]} 40. Rh3 {[%emt 0:00:16]} b2 {[%emt 0:00:06]} 41. Kd2 {[%emt 0:00:13]} e4 {[%emt 0:00:12]} 42. h5 {[%emt 0:00:13]} e3+ {[%emt 0:00:56]} 43. Kc2 {[%emt 0:00:55]} Kd5 {[%emt 0:00:34]} 44. h6 {[%emt 0:00:58]} d3+ {[%emt 0:03:43]} 45. Kd1 {[%emt 0:00:04]} Ne4 {[%emt 0:02:05]} 46. Rxe3 {[%emt 0:00:20]} Nc3+ {[%emt 0:02:02]} 47. Ke1 {[%emt 0:00:03]} Nxb1 {[%emt 0:01:05]} 48. Rxd3+ {[%emt 0:01:30]} Kc4 {[%emt 0:00:14]} 49. h7 {[%emt 0:00:03]} Nc3 {[%emt 0:00:13]} 50. Kd2 {[%emt 0:00:35]} Ne4+ {[%emt 0:00:34]} 51. Ke3 {[%emt 0:00:04]} b1=Q {[%emt 0:00:21]} 52. Rd4+ {[%emt 0:00:07]} Kc5 {[%emt 0:01:26]} 53. h8=Q {[%emt 0:00:04]} Rb3+ {[%emt 0:00:10]} 54. Kf4 {[%emt 0:00:06]} Kxd4 {[%emt 0:00:17]} 55. Qd8+ {[%emt 0:00:05]} Kc3 {[%emt 0:00:15]} 56. Qa5+ {[%emt 0:00:04]} Kb2 {[%emt 0:00:39]} 0-1

[Event "Eurasia Open Cup 2018"]
[Site "Jekaterienburg"]
[Date "2018.08.04"]
[Round "4"]
[White "Kopylov, Alexander A."]
[Black "Grachev, Alexey"]
[Result "1-0"]
[ECO "D12"]
[WhiteElo "2421"]
[BlackElo "2277"]
[Annotator "NA"]
[PlyCount "129"]
[EventDate "2018.08.01"]
[EventType "swiss"]
[EventCountry "RUS"]
[SourceTitle "playchess.com"]
[Source "ChessBase"]
[SourceQuality "1"]
[TimeControl "5400+30"]

1. d4 {[%emt 0:00:00]} d5 {[%emt 0:00:10]} 2. c4 {[%emt 0:00:59]} c6 {[%emt 0:00:13]} 3. Nf3 {[%emt 0:00:14]} Nf6 {[%emt 0:00:06]} 4. e3 {[%emt 0:00:13]} Bf5 {[%emt 0:00:11]} 5. Nc3 {[%emt 0:00:13]} e6 {[%emt 0:00:06]} 6. Nh4 {[%emt 0:01:26]} Be4 {[%emt 0:00:13]} 7. f3 {[%emt 0:00:37]} Bg6 {[%emt 0:00:05]} 8. Qb3 {[%emt 0:00:23]} Qc7 {[%emt 0:00:08]} 9. Bd2 {[%emt 0:00:48]} Be7 {[%emt 0:00:07]} 10. Rc1 {[%emt 0:06:39]} Nbd7 {[%emt 0:01:12]} 11. g3 {[%emt 0:09:09]} Nb6 {[%emt 0:20:34]} 12. cxd5 $14 {[%emt 0:18:59]} Nfxd5 {[%emt 0:08:51]} 13. Nxg6 {[%emt 0:07:30]} hxg6 {[%emt 0:00:03]} 14. Ne2 {[%emt 0:00:11]} a5 {[%emt 0:05:09]} 15. a3 {[%emt 0:00:07]} a4 {[%emt 0:00:55]} 16. Qa2 {[%emt 0:06:15]} e5 {[%emt 0:12:54]} 17. e4 {[%emt 0:03:14]} Nf6 {[%emt 0:00:14]} 18. d5 {[%emt 0:12:12]} Nbd7 {[%emt 0:01:10]} 19. dxc6 {[%emt 0:01:04]} bxc6 {[%emt 0:00:13]} 20. Qc4 {[%emt 0:00:41]} Nc5 {[%emt 0:05:40]} 21. Bb4 {[%emt 0:00:20]} Nfd7 {[%emt 0:00:20]} 22. h4 {[%emt 0:09:21]} Rd8 {[%emt 0:16:21]} 23. Qc3 {[%emt 0:00:14]} Qd6 {[%emt 0:08:17]} 24. Rd1 {[%emt 0:00:53]} Qe6 {[%emt 0:00:00]} 25. Bh3 {[%emt 0:00:42]} f5 {[%emt 0:01:28]} 26. Qc2 {[%emt 0:01:53]} Rf8 {[%emt 0:01:57]} 27. O-O {[%emt 0:01:04]} Qb3 {[%emt 0:01:46]} 28. Qxb3 {[%emt 0:01:12]} axb3 {[%emt 0:00:00]} 29. exf5 {[%emt 0:01:23]} gxf5 {[%emt 0:00:03]} 30. Nc1 {[%emt 0:00:58]} Rb8 {[%emt 0:03:21]} 31. Rfe1 {[%emt 0:00:41]} Ne6 {[%emt 0:01:56]} 32. Bxe7 {[%emt 0:01:29]} Kxe7 {[%emt 0:00:01]} 33. Re3 {[%emt 0:00:32]} Nec5 {[%emt 0:01:04]} 34. Nd3 {[%emt 0:00:33]} Nxd3 {[%emt 0:01:17]} 35. Rdxd3 {[%emt 0:00:04]} g6 {[%emt 0:01:31]} 36. Rxb3 {[%emt 0:00:06]} Rxb3 {[%emt 0:01:05]} 37. Rxb3 {[%emt 0:00:01]} Nc5 {[%emt 0:00:08]} 38. Rb6 {[%emt 0:01:42]} Kd6 {[%emt 0:00:14]} 39. b4 {[%emt 0:00:09]} Nb3 {[%emt 0:01:44]} 40. a4 {[%emt 0:00:14]} Kc7 {[%emt 0:00:14]} 41. a5 {[%emt 0:00:25]} Nd2 {[%emt 0:05:51]} 42. Kf2 {[%emt 0:00:04]} e4 {[%emt 0:00:38]} 43. fxe4 {[%emt 0:01:50]} fxe4+ {[%emt 0:00:03]} 44. Ke2 {[%emt 0:00:02]} Nc4 {[%emt 0:01:02]} 45. Ra6 {[%emt 0:00:03]} Rf3 {[%emt 0:01:33]} 46. Ra7+ {[%emt 0:01:16]} Kb8 {[%emt 0:00:50]} 47. Re7 {[%emt 0:00:18]} Rb3 {[%emt 0:01:04]} 48. Rxe4 {[%emt 0:00:39]} Rxb4 {[%emt 0:00:05]} 49. a6 {[%emt 0:00:37]} Rb2+ {[%emt 0:00:29]} 50. Kd3 {[%emt 0:00:23]} Nd6 {[%emt 0:00:01]} 51. Rg4 {[%emt 0:00:32]} Rb3+ {[%emt 0:01:22]} 52. Kc2 {[%emt 0:00:06]} Re3 {[%emt 0:00:26]} 53. Rxg6 {[%emt 0:00:47]} Ne4 {[%emt 0:00:00]} 54. h5 {[%emt 0:00:48]} Rc3+ {[%emt 0:00:18]} 55. Kb2 {[%emt 0:00:05]} Rc5 {[%emt 0:00:25]} 56. h6 {[%emt 0:00:33]} Rh5 {[%emt 0:00:09]} 57. Bf1 {[%emt 0:00:53]} Rh1 {[%emt 0:00:45]} 58. Rg8+ {[%emt 0:00:33]} Ka7 {[%emt 0:00:12]} 59. Rg7+ {[%emt 0:00:03]} Kb8 {[%emt 0:00:32]} 60. h7 {[%emt 0:00:14]} Rh2+ {[%emt 0:00:16]} 61. Ka3 {[%emt 0:00:12]} Nxg3 {[%emt 0:00:23]} 62. Bg2 {[%emt 0:00:27]} Rh6 {[%emt 0:00:24]} 63. a7+ {[%emt 0:00:14]} Ka8 {[%emt 0:00:03]} 64. h8=R+ {[%emt 0:00:12]} Rxh8 {[%emt 0:00:04]} 65. Bxc6# {[%emt 0:00:04]} 1-0